[Event "79th Tata Steel Chess 2017-Challengers"]
[Site "Wijk aan Zee"]
[Date "2017.01.14"]
[Round "1"]
[White "Bok, Benjamin"]
[Black "Lei, Tingjie"]
[Result "1-0"]
[ECO "D46"]
[WhiteElo "2608"]
[BlackElo "2467"]
[Annotator "ChessBase"]
[PlyCount "79"]
[EventDate "2017.??.??"]
[EventType "tourn"]
[EventCountry "NED"]
[SourceTitle "playchess.com"]
[Source "ChessBase"]
[TimeControl "40/6000+30:20/3000+30:900+30"]

1. Nf3 {[%emt 0:00:00]} Nf6 {[%emt 0:00:44]} 2. c4 {[%emt 0:00:31]} c6 {
[%emt 0:01:20]} 3. Nc3 {[%emt 0:02:18]} d5 {[%emt 0:00:11]} 4. e3 {[%emt 0:00:
38]} e6 {[%emt 0:01:09]} 5. d4 {[%emt 0:01:10]} Nbd7 {[%emt 0:00:07]} 6. Qc2 {
[%emt 0:00:06]} Bd6 {[%emt 0:00:52]} 7. Bd3 {[%emt 0:00:17]} O-O {[%emt 0:00:
41]} 8. O-O {[%emt 0:00:07]} dxc4 {[%emt 0:00:39]} 9. Bxc4 {[%emt 0:00:16]} b5
{[%emt 0:00:08]} 10. Be2 {[%emt 0:00:09]} Bb7 {[%emt 0:01:11]} 11. Rd1 {
[%emt 0:00:18]} Qc7 {[%emt 0:07:46]} 12. Bd2 {[%emt 0:00:43]} b4 {[%emt 0:03:
32]} 13. Na4 {[%emt 0:04:36]} c5 {[%emt 0:04:31]} 14. dxc5 {[%emt 0:01:24]} a5
{[%emt 0:06:54]} 15. Bc3 {[%emt 0:05:40]} Bxh2+ {[%emt 0:16:45]} 16. Nxh2 {
[%emt 0:01:26]} bxc3 {[%emt 0:00:05]} 17. Qxc3 {[%emt 0:00:25]} Bc6 {[%emt 0:
01:39]} 18. Nb6 {[%emt 0:05:08]} Nxb6 {[%emt 0:02:10]} 19. cxb6 {[%emt 0:00:22]
} Qb7 {[%emt 0:00:11]} 20. Rac1 {[%emt 0:40:00]} Bd5 {[%emt 0:16:14]} 21. Qd4 {
[%emt 0:08:58]} Rab8 {[%emt 0:03:16]} 22. b3 {[%emt 0:01:45]} Qxb6 {[%emt 0:04:
14]} 23. Qxb6 {[%emt 0:08:00]} Rxb6 {[%emt 0:00:04]} 24. f3 {[%emt 0:02:04]}
Rb4 {[%emt 0:16:50]} 25. e4 {[%emt 0:02:42]} Bb7 {[%emt 0:00:04]} 26. Rc7 {
[%emt 0:02:35]} Ra8 {[%emt 0:03:14]} 27. a4 {[%emt 0:04:38]} g5 {[%emt 0:10:45]
} 28. Rc3 {[%emt 0:10:29]} Ba6 {[%emt 0:04:38]} 29. Bxa6 {[%emt 0:01:20]} Rxa6
{[%emt 0:00:04]} 30. Nf1 {[%emt 0:01:27]} Nh5 {[%emt 0:03:47]} 31. Kf2 {
[%emt 0:04:23]} Rab6 {[%emt 0:01:04]} 32. Rd8+ {[%emt 0:00:22]} Kg7 {[%emt 0:
00:05]} 33. Nd2 {[%emt 0:00:05]} Ra6 {[%emt 0:01:25]} 34. Rc7 {[%emt 0:01:28]}
Nf6 {[%emt 0:00:34]} 35. Nc4 {[%emt 0:00:59]} Rxb3 {[%emt 0:00:30]} 36. Ne5 {
[%emt 0:00:26]} Rb2+ {[%emt 0:00:32]} 37. Kg1 {[%emt 0:00:20]} Rb1+ {[%emt 0:
00:31]} 38. Kh2 {[%emt 0:00:10]} Nh5 {[%emt 0:00:32]} 39. Rxf7+ {[%emt 0:00:06]
} Kh6 {[%emt 0:00:02]} 40. Rg8 {[%emt 0:00:00]} 1-0

[Event "79th Tata Steel Chess 2017-Challengers"]
[Site "Wijk aan Zee"]
[Date "2017.01.14"]
[Round "1"]
[White "Guramishvili, Sopiko"]
[Black "Lu, Shanglei"]
[Result "1/2-1/2"]
[ECO "B90"]
[WhiteElo "2370"]
[BlackElo "2612"]
[Annotator "ChessBase"]
[PlyCount "82"]
[EventDate "2017.??.??"]
[EventType "tourn"]
[EventCountry "NED"]
[SourceTitle "playchess.com"]
[Source "ChessBase"]
[TimeControl "40/6000+30:20/3000+30:900+30"]

1. e4 {[%emt 0:00:00]} c5 {[%emt 0:01:04]} 2. Nf3 {[%emt 0:00:00]} d6 {[%emt 0:
00:38]} 3. d4 {[%emt 0:00:00]} cxd4 {[%emt 0:00:33]} 4. Nxd4 {[%emt 0:00:06]}
Nf6 {[%emt 0:00:14]} 5. Nc3 {[%emt 0:00:08]} a6 {[%emt 0:01:07]} 6. Be3 {
[%emt 0:00:08]} e5 {[%emt 0:03:48]} 7. Nf3 {[%emt 0:00:10]} Be7 {[%emt 0:04:19]
} 8. Bc4 {[%emt 0:00:12]} Be6 {[%emt 0:02:41]} 9. Bxe6 {[%emt 0:00:25]} fxe6 {
[%emt 0:00:09]} 10. Ng5 {[%emt 0:00:09]} Qd7 {[%emt 0:15:26]} 11. Qf3 {[%emt 0:
00:16]} Nc6 {[%emt 0:02:19]} 12. Qh3 {[%emt 0:02:52]} d5 {[%emt 0:27:05]} 13.
Nxe6 {[%emt 0:22:37]} d4 {[%emt 0:00:36]} 14. Nd5 {[%emt 0:31:16]} dxe3 {
[%emt 0:06:35]} 15. O-O-O {[%emt 0:15:52]} Nd4 {[%emt 0:09:18]} 16. Ndc7+ {
[%emt 0:02:16]} Kf7 {[%emt 0:00:25]} 17. fxe3 {[%emt 0:01:31]} Qxe6 {[%emt 0:
02:26]} 18. Nxe6 {[%emt 0:00:18]} Nxe6 {[%emt 0:00:05]} 19. Rhf1 {[%emt 0:01:
20]} h5 {[%emt 0:09:56]} 20. Qf5 {[%emt 0:05:01]} Rac8 {[%emt 0:02:35]} 21.
Qxe5 {[%emt 0:01:46]} Rc5 {[%emt 0:00:58]} 22. Rd5 {[%emt 0:02:46]} Rhc8 {
[%emt 0:01:17]} 23. Qxh5+ {[%emt 0:07:41]} Kg8 {[%emt 0:00:11]} 24. Qe5 {
[%emt 0:04:06]} Rxc2+ {[%emt 0:01:24]} 25. Kb1 {[%emt 0:00:03]} R8c6 {[%emt 0:
01:19]} 26. Qb8+ {[%emt 0:00:57]} Kh7 {[%emt 0:01:49]} 27. Qxb7 {[%emt 0:01:59]
} Rc7 {[%emt 0:00:50]} 28. Qb3 {[%emt 0:01:47]} Rxg2 {[%emt 0:01:04]} 29. Qd3 {
[%emt 0:01:36]} Kh8 {[%emt 0:08:21]} 30. Qxa6 {[%emt 0:02:12]} Nc5 {[%emt 0:04:
19]} 31. Qa8+ {[%emt 0:00:52]} Kh7 {[%emt 0:00:02]} 32. Rxc5 {[%emt 0:00:56]}
Rxc5 {[%emt 0:00:51]} 33. e5 {[%emt 0:00:17]} Rcc2 {[%emt 0:02:40]} 34. Qb7 {
[%emt 0:03:45]} Ng4 {[%emt 0:00:12]} 35. Qxe7 {[%emt 0:01:07]} Rxb2+ {[%emt 0:
00:07]} 36. Ka1 {[%emt 0:00:08]} Rxa2+ {[%emt 0:00:04]} 37. Kb1 {[%emt 0:00:04]
} Rab2+ {[%emt 0:00:21]} 38. Ka1 {[%emt 0:00:06]} Ra2+ {[%emt 0:00:03]} 39. Kb1
{[%emt 0:00:04]} Rgb2+ {[%emt 0:00:28]} 40. Kc1 {[%emt 0:00:00]} Rxh2 {[%emt 0:
00:51]} 41. Kb1 {[%emt 0:00:29]} Rab2+ {[%emt 0:02:53]} 1/2-1/2

[Event "79th Tata Steel Chess 2017-Challengers"]
[Site "Wijk aan Zee"]
[Date "2017.01.14"]
[Round "1"]
[White "Jones, Gawain C B"]
[Black "Grandelius, Nils"]
[Result "1/2-1/2"]
[ECO "C45"]
[WhiteElo "2665"]
[BlackElo "2642"]
[Annotator "ChessBase"]
[PlyCount "40"]
[EventDate "2017.??.??"]
[EventType "tourn"]
[EventCountry "NED"]
[SourceTitle "playchess.com"]
[Source "ChessBase"]
[TimeControl "40/6000+30:20/3000+30:900+30"]

1. e4 {[%emt 0:00:02]} e5 {[%emt 0:00:27]} 2. Nf3 {[%emt 0:00:12]} Nc6 {
[%emt 0:00:19]} 3. d4 {[%emt 0:00:08]} exd4 {[%emt 0:00:10]} 4. Nxd4 {[%emt 0:
00:04]} Bc5 {[%emt 0:01:49]} 5. Nxc6 {[%emt 0:00:15]} bxc6 {[%emt 0:01:05]} 6.
Bd3 {[%emt 0:00:57]} d6 {[%emt 0:02:00]} 7. O-O {[%emt 0:04:29]} Nf6 {[%emt 0:
01:01]} 8. h3 {[%emt 0:04:38]} Nd7 {[%emt 0:02:05]} 9. Nc3 {[%emt 0:01:19]} O-O
{[%emt 0:15:40]} 10. Na4 {[%emt 0:02:44]} Qh4 {[%emt 0:07:00]} 11. b3 {[%emt 0:
20:15]} Bd4 {[%emt 0:06:16]} 12. c3 {[%emt 0:02:42]} Bf6 {[%emt 0:09:20]} 13.
Bd2 {[%emt 0:20:47]} Ne5 {[%emt 0:08:33]} 14. Bc2 {[%emt 0:04:11]} Bxh3 {
[%emt 0:13:08]} 15. gxh3 {[%emt 0:00:58]} Qxh3 {[%emt 0:01:25]} 16. f3 {
[%emt 0:00:53]} Qg3+ {[%emt 0:01:25]} 17. Kh1 {[%emt 0:00:07]} Qh3+ {[%emt 0:
00:50]} 18. Kg1 {[%emt 0:00:05]} Qg3+ {[%emt 0:00:09]} 19. Kh1 {[%emt 0:00:06]}
Qh3+ {[%emt 0:00:06]} 20. Kg1 {[%emt 0:00:03]} Qg3+ {[%emt 0:00:08]} 1/2-1/2

[Event "79th Tata Steel Chess 2017-Challengers"]
[Site "Wijk aan Zee"]
[Date "2017.01.14"]
[Round "1"]
[White "Ragger, Markus"]
[Black "Xiong, Jeffery"]
[Result "1-0"]
[ECO "B90"]
[WhiteElo "2697"]
[BlackElo "2667"]
[Annotator "ChessBase"]
[PlyCount "81"]
[EventDate "2017.??.??"]
[EventType "tourn"]
[EventCountry "NED"]
[SourceTitle "playchess.com"]
[Source "ChessBase"]
[TimeControl "40/6000+30:20/3000+30:900+30"]

1. e4 {[%emt 0:00:00]} c5 {[%emt 0:00:17]} 2. Nf3 {[%emt 0:00:00]} d6 {[%emt 0:
00:18]} 3. d4 {[%emt 0:00:00]} Nf6 {[%emt 0:00:13]} 4. Nc3 {[%emt 0:00:06]}
cxd4 {[%emt 0:00:09]} 5. Nxd4 {[%emt 0:00:06]} a6 {[%emt 0:00:09]} 6. h3 {
[%emt 0:00:10]} e5 {[%emt 0:00:26]} 7. Nde2 {[%emt 0:00:06]} b5 {[%emt 0:00:47]
} 8. Ng3 {[%emt 0:00:30]} Qc7 {[%emt 0:06:35]} 9. Bd3 {[%emt 0:00:39]} Be6 {
[%emt 0:11:05]} 10. O-O {[%emt 0:12:47]} Nbd7 {[%emt 0:05:16]} 11. f4 {[%emt 0:
13:20]} Be7 {[%emt 0:01:29]} 12. Qf3 {[%emt 0:07:40]} O-O {[%emt 0:11:21]} 13.
Kh1 {[%emt 0:04:35]} Qc6 {[%emt 0:09:48]} 14. f5 {[%emt 0:06:24]} Bc4 {[%emt 0:
00:11]} 15. Bg5 {[%emt 0:00:09]} Rac8 {[%emt 0:29:31]} 16. Nh5 {[%emt 0:10:24]}
b4 {[%emt 0:02:11]} 17. Bxf6 {[%emt 0:11:45]} Nxf6 {[%emt 0:00:15]} 18. Nxf6+ {
[%emt 0:01:10]} Bxf6 {[%emt 0:00:03]} 19. Bxc4 {[%emt 0:00:08]} Qxc4 {[%emt 0:
02:20]} 20. Nd5 {[%emt 0:00:03]} Qxc2 {[%emt 0:05:03]} 21. b3 {[%emt 0:07:50]}
a5 {[%emt 0:03:13]} 22. Qe3 {[%emt 0:03:48]} Kh8 {[%emt 0:06:39]} 23. Rac1 {
[%emt 0:11:01]} Qxa2 {[%emt 0:08:08]} 24. Nxf6 {[%emt 0:00:09]} Rxc1 {[%emt 0:
01:24]} 25. Rxc1 {[%emt 0:03:29]} gxf6 {[%emt 0:00:03]} 26. Qh6 {[%emt 0:00:03]
} Kg8 {[%emt 0:00:13]} 27. Qxf6 {[%emt 0:02:42]} Qd2 {[%emt 0:01:38]} 28. Rf1 {
[%emt 0:00:30]} Re8 {[%emt 0:02:00]} 29. Rf3 {[%emt 0:02:07]} a4 {[%emt 0:01:
05]} 30. Rg3+ {[%emt 0:03:42]} Kf8 {[%emt 0:00:02]} 31. Qg7+ {[%emt 0:00:10]}
Ke7 {[%emt 0:00:02]} 32. f6+ {[%emt 0:00:07]} Kd8 {[%emt 0:01:09]} 33. Qxf7 {
[%emt 0:00:30]} a3 {[%emt 0:03:04]} 34. Qa7 {[%emt 0:00:59]} Qc1+ {[%emt 0:00:
15]} 35. Kh2 {[%emt 0:00:02]} Qf4 {[%emt 0:00:12]} 36. Qb8+ {[%emt 0:02:52]}
Kd7 {[%emt 0:00:02]} 37. Qb5+ {[%emt 0:00:17]} Kd8 {[%emt 0:00:03]} 38. Qxb4 {
[%emt 0:00:49]} h5 {[%emt 0:02:16]} 39. Qxd6+ {[%emt 0:01:42]} Kc8 {[%emt 0:00:
01]} 40. Qc6+ {[%emt 0:00:00]} Kd8 {[%emt 0:00:02]} 41. f7 {[%emt 0:01:32]} 1-0

[Event "79th Tata Steel Chess 2017-Challengers"]
[Site "Wijk aan Zee"]
[Date "2017.01.14"]
[Round "1"]
[White "Smirin, Ilia"]
[Black "Dobrov, Vladimir"]
[Result "1/2-1/2"]
[ECO "B70"]
[WhiteElo "2667"]
[BlackElo "2499"]
[Annotator "ChessBase"]
[PlyCount "68"]
[EventDate "2017.??.??"]
[EventType "tourn"]
[EventCountry "NED"]
[SourceTitle "playchess.com"]
[Source "ChessBase"]
[TimeControl "40/6000+30:20/3000+30:900+30"]

1. e4 {[%emt 0:00:00]} c5 {[%emt 0:00:09]} 2. Nf3 {[%emt 0:00:00]} d6 {[%emt 0:
00:11]} 3. d4 {[%emt 0:00:22]} cxd4 {[%emt 0:00:08]} 4. Nxd4 {[%emt 0:00:02]}
Nf6 {[%emt 0:00:07]} 5. Nc3 {[%emt 0:00:11]} a6 {[%emt 0:00:06]} 6. f4 {
[%emt 0:01:01]} Qc7 {[%emt 0:02:14]} 7. a4 {[%emt 0:02:42]} g6 {[%emt 0:00:59]}
8. Be2 {[%emt 0:01:00]} Bg7 {[%emt 0:01:20]} 9. O-O {[%emt 0:00:22]} O-O {
[%emt 0:00:35]} 10. Kh1 {[%emt 0:00:10]} Nbd7 {[%emt 0:03:18]} 11. Be3 {
[%emt 0:10:31]} Nb6 {[%emt 0:01:31]} 12. Qd3 {[%emt 0:03:42]} e5 {[%emt 0:09:
11]} 13. Nb3 {[%emt 0:02:23]} d5 {[%emt 0:07:35]} 14. fxe5 {[%emt 0:19:26]}
Nxe4 {[%emt 0:16:31]} 15. a5 {[%emt 0:00:42]} Nc4 {[%emt 0:00:30]} 16. Nxe4 {
[%emt 0:05:52]} Nxe3 {[%emt 0:00:16]} 17. Nf6+ {[%emt 0:04:55]} Bxf6 {[%emt 0:
00:22]} 18. exf6 {[%emt 0:00:06]} Re8 {[%emt 0:01:09]} 19. Rf2 {[%emt 0:05:56]}
Bf5 {[%emt 0:01:18]} 20. Qd4 {[%emt 0:00:32]} Qxc2 {[%emt 0:04:19]} 21. Nc5 {
[%emt 0:06:16]} Be4 {[%emt 0:10:40]} 22. Kg1 {[%emt 0:01:53]} Nf5 {[%emt 0:00:
19]} 23. Qb4 {[%emt 0:00:05]} Rec8 {[%emt 0:08:43]} 24. Na4 {[%emt 0:07:32]}
Rc7 {[%emt 0:06:43]} 25. Nc3 {[%emt 0:08:58]} Qd2 {[%emt 0:03:32]} 26. Bxa6 {
[%emt 0:01:13]} Qd4 {[%emt 0:00:29]} 27. Qxd4 {[%emt 0:00:16]} Nxd4 {[%emt 0:
00:03]} 28. Bf1 {[%emt 0:00:11]} Rc5 {[%emt 0:06:36]} 29. Ra4 {[%emt 0:09:11]}
Nc6 {[%emt 0:01:13]} 30. Nxe4 {[%emt 0:00:08]} dxe4 {[%emt 0:00:07]} 31. Rxe4 {
[%emt 0:08:31]} Rcxa5 {[%emt 0:00:08]} 32. b4 {[%emt 0:00:56]} Re5 {[%emt 0:06:
15]} 33. Rxe5 {[%emt 0:00:25]} Nxe5 {[%emt 0:00:05]} 34. Rd2 {[%emt 0:00:22]}
h5 {[%emt 0:01:30]} 1/2-1/2

[Event "79th Tata Steel Chess 2017-Challengers"]
[Site "Wijk aan Zee"]
[Date "2017.01.14"]
[Round "1"]
[White "Tari, Aryan"]
[Black "Hansen, Eric"]
[Result "1/2-1/2"]
[ECO "C96"]
[WhiteElo "2584"]
[BlackElo "2603"]
[Annotator "ChessBase"]
[PlyCount "98"]
[EventDate "2017.??.??"]
[EventType "tourn"]
[EventCountry "NED"]
[SourceTitle "playchess.com"]
[Source "ChessBase"]
[TimeControl "40/6000+30:20/3000+30:900+30"]

1. e4 {[%emt 0:00:00]} e5 {[%emt 0:00:36]} 2. Nf3 {[%emt 0:00:00]} Nc6 {
[%emt 0:00:06]} 3. Bb5 {[%emt 0:00:00]} a6 {[%emt 0:01:13]} 4. Ba4 {[%emt 0:00:
03]} Nf6 {[%emt 0:00:07]} 5. O-O {[%emt 0:00:13]} Be7 {[%emt 0:00:14]} 6. Re1 {
[%emt 0:00:13]} b5 {[%emt 0:00:38]} 7. Bb3 {[%emt 0:00:08]} d6 {[%emt 0:00:16]}
8. c3 {[%emt 0:00:13]} O-O {[%emt 0:00:07]} 9. h3 {[%emt 0:00:16]} Na5 {
[%emt 0:05:14]} 10. Bc2 {[%emt 0:00:09]} c5 {[%emt 0:00:05]} 11. d4 {[%emt 0:
00:24]} Nd7 {[%emt 0:00:42]} 12. Nbd2 {[%emt 0:00:24]} Re8 {[%emt 0:01:10]} 13.
d5 {[%emt 0:00:51]} Nb6 {[%emt 0:02:15]} 14. Nf1 {[%emt 0:01:10]} Nb7 {[%emt 0:
05:08]} 15. Ng3 {[%emt 0:04:53]} g6 {[%emt 0:08:32]} 16. b3 {[%emt 0:14:09]} c4
{[%emt 0:08:48]} 17. Be3 {[%emt 0:02:42]} cxb3 {[%emt 0:00:38]} 18. axb3 {
[%emt 0:00:11]} Bd7 {[%emt 0:00:55]} 19. Nh2 {[%emt 0:18:42]} a5 {[%emt 0:15:
14]} 20. Ng4 {[%emt 0:05:38]} Bg5 {[%emt 0:05:41]} 21. Qd2 {[%emt 0:12:13]}
Bxe3 {[%emt 0:00:37]} 22. Qxe3 {[%emt 0:00:54]} Rc8 {[%emt 0:16:28]} 23. Nf5 {
[%emt 0:17:36]} Kh8 {[%emt 0:09:55]} 24. Nfh6 {[%emt 0:02:56]} Rf8 {[%emt 0:00:
58]} 25. f4 {[%emt 0:02:23]} Bxg4 {[%emt 0:01:04]} 26. fxe5 {[%emt 0:09:39]}
dxe5 {[%emt 0:04:10]} 27. Nxg4 {[%emt 0:00:38]} Nd7 {[%emt 0:00:03]} 28. Rf1 {
[%emt 0:02:10]} h5 {[%emt 0:00:09]} 29. Nh2 {[%emt 0:02:48]} Kg7 {[%emt 0:04:
30]} 30. Rf3 {[%emt 0:02:12]} Qb6 {[%emt 0:02:35]} 31. Qxb6 {[%emt 0:00:28]}
Nxb6 {[%emt 0:00:02]} 32. Bd3 {[%emt 0:01:45]} Nd6 {[%emt 0:01:37]} 33. Rxa5 {
[%emt 0:01:26]} Rxc3 {[%emt 0:00:05]} 34. Bf1 {[%emt 0:01:30]} Rc1 {[%emt 0:03:
09]} 35. Ra6 {[%emt 0:00:31]} Nbc8 {[%emt 0:00:26]} 36. Re3 {[%emt 0:02:10]} f5
{[%emt 0:02:13]} 37. exf5 {[%emt 0:01:33]} Nxf5 {[%emt 0:00:06]} 38. Rxe5 {
[%emt 0:01:51]} Ng3 {[%emt 0:00:40]} 39. Rg5 {[%emt 0:01:49]} Ne2+ {[%emt 0:03:
38]} 40. Kh1 {[%emt 0:00:00]} Rf6 {[%emt 0:09:28]} 41. Rc6 {[%emt 0:10:51]}
Rfxc6 {[%emt 0:00:35]} 42. dxc6 {[%emt 0:00:07]} Nd6 {[%emt 0:00:07]} 43. g4 {
[%emt 0:07:01]} Nf4 {[%emt 0:40:09]} 44. gxh5 {[%emt 0:06:42]} Ne4 {[%emt 0:00:
18]} 45. Rxb5 {[%emt 0:00:54]} Nf2+ {[%emt 0:00:28]} 46. Kg1 {[%emt 0:00:06]}
N2xh3+ {[%emt 0:00:03]} 47. Kh1 {[%emt 0:00:07]} Nf2+ {[%emt 0:02:52]} 48. Kg1
{[%emt 0:00:05]} N2h3+ {[%emt 0:00:04]} 49. Kh1 {[%emt 0:00:07]} Nf2+ 1/2-1/2

[Event "79th Tata Steel Chess 2017-Challengers"]
[Site "Wijk aan Zee"]
[Date "2017.01.14"]
[Round "1"]
[White "Van Foreest, Jorden"]
[Black "L'Ami, Erwin"]
[Result "1-0"]
[ECO "B19"]
[WhiteElo "2612"]
[BlackElo "2605"]
[Annotator "ChessBase"]
[PlyCount "79"]
[EventDate "2017.??.??"]
[EventType "tourn"]
[EventCountry "NED"]
[SourceTitle "playchess.com"]
[Source "ChessBase"]
[TimeControl "40/6000+30:20/3000+30:900+30"]

1. e4 {[%emt 0:00:00]} c6 {[%emt 0:00:11]} 2. d4 {[%emt 0:00:00]} d5 {[%emt 0:
00:07]} 3. Nd2 {[%emt 0:00:00]} dxe4 {[%emt 0:00:12]} 4. Nxe4 {[%emt 0:00:00]}
Bf5 {[%emt 0:00:46]} 5. Ng3 {[%emt 0:00:01]} Bg6 {[%emt 0:00:07]} 6. h4 {
[%emt 0:00:18]} h6 {[%emt 0:00:08]} 7. Nf3 {[%emt 0:00:10]} Nd7 {[%emt 0:00:10]
} 8. h5 {[%emt 0:00:09]} Bh7 {[%emt 0:00:07]} 9. Bd3 {[%emt 0:00:32]} Bxd3 {
[%emt 0:00:11]} 10. Qxd3 {[%emt 0:00:04]} e6 {[%emt 0:00:14]} 11. Bd2 {[%emt 0:
00:13]} Ngf6 {[%emt 0:00:25]} 12. O-O-O {[%emt 0:00:07]} Be7 {[%emt 0:00:12]}
13. Kb1 {[%emt 0:00:05]} Rc8 {[%emt 0:09:24]} 14. Ne4 {[%emt 0:05:34]} c5 {
[%emt 0:06:31]} 15. Nxf6+ {[%emt 0:05:21]} Bxf6 {[%emt 0:07:36]} 16. d5 {
[%emt 0:03:31]} Qb6 {[%emt 0:06:13]} 17. c3 {[%emt 0:13:33]} c4 {[%emt 0:09:34]
} 18. Qe4 {[%emt 0:04:12]} e5 {[%emt 0:19:16]} 19. Be3 {[%emt 0:00:30]} Qd6 {
[%emt 0:02:37]} 20. Nd4 {[%emt 0:01:17]} Nc5 {[%emt 0:02:40]} 21. Qg4 {[%emt 0:
00:14]} Qd7 {[%emt 0:06:33]} 22. Nf5 {[%emt 0:00:38]} Nd3 {[%emt 0:01:47]} 23.
Nxg7+ {[%emt 0:12:42]} Bxg7 {[%emt 0:03:08]} 24. Qxg7 {[%emt 0:00:06]} Ke7 {
[%emt 0:03:11]} 25. Bc5+ {[%emt 0:03:10]} Rxc5 {[%emt 0:01:29]} 26. Qxh8 {
[%emt 0:00:07]} Qf5 {[%emt 0:02:40]} 27. Ka1 {[%emt 0:07:11]} Rxd5 {[%emt 0:05:
48]} 28. Qxh6 {[%emt 0:00:48]} Qxf2 {[%emt 0:02:19]} 29. Qg5+ {[%emt 0:03:05]}
f6 {[%emt 0:01:30]} 30. Qg7+ {[%emt 0:00:12]} Ke6 {[%emt 0:03:52]} 31. Qxb7 {
[%emt 0:00:08]} Qb6 {[%emt 0:01:40]} 32. Qxb6+ {[%emt 0:03:47]} axb6 {[%emt 0:
00:06]} 33. h6 {[%emt 0:00:08]} Rd8 {[%emt 0:00:09]} 34. h7 {[%emt 0:00:03]}
Rh8 {[%emt 0:00:08]} 35. Rh6 {[%emt 0:00:17]} b5 {[%emt 0:04:26]} 36. Rf1 {
[%emt 0:00:42]} Nf4 {[%emt 0:00:14]} 37. g3 {[%emt 0:00:07]} Nd5 {[%emt 0:00:
06]} 38. g4 {[%emt 0:00:04]} Kf7 {[%emt 0:00:39]} 39. g5 {[%emt 0:00:17]} Kg7 {
[%emt 0:00:24]} 40. Rhh1 {[%emt 0:00:00]} 1-0

[Event "79th Tata Steel Chess 2017-Challengers"]
[Site "Wijk aan Zee"]
[Date "2017.01.15"]
[Round "2"]
[White "Dobrov, Vladimir"]
[Black "Tari, Aryan"]
[Result "1/2-1/2"]
[ECO "D96"]
[WhiteElo "2499"]
[BlackElo "2584"]
[Annotator "ChessBase"]
[PlyCount "79"]
[EventDate "2017.??.??"]
[EventType "tourn"]
[EventCountry "NED"]
[SourceTitle "playchess.com"]
[Source "ChessBase"]
[TimeControl "40/6000+30:20/3000+30:900+30"]

1. Nf3 {[%emt 0:00:20]} Nf6 {[%emt 0:00:08]} 2. d4 {[%emt 0:02:42]} g6 {
[%emt 0:00:21]} 3. c4 {[%emt 0:07:29]} Bg7 {[%emt 0:00:07]} 4. Nc3 {[%emt 0:00:
10]} d5 {[%emt 0:00:04]} 5. Qb3 {[%emt 0:00:14]} dxc4 {[%emt 0:00:27]} 6. Qxc4
{[%emt 0:00:15]} Be6 {[%emt 0:00:12]} 7. Qa4+ {[%emt 0:00:50]} Bd7 {[%emt 0:00:
43]} 8. Qc2 {[%emt 0:01:01]} c5 {[%emt 0:03:10]} 9. d5 {[%emt 0:00:54]} e6 {
[%emt 0:26:05]} 10. dxe6 {[%emt 0:06:15]} Bxe6 {[%emt 0:00:24]} 11. Ng5 {
[%emt 0:01:26]} Bd7 {[%emt 0:05:30]} 12. Bf4 {[%emt 0:07:26]} O-O {[%emt 0:05:
02]} 13. Bd6 {[%emt 0:17:57]} Bf5 {[%emt 0:04:35]} 14. Qd2 {[%emt 0:00:21]} Re8
{[%emt 0:04:38]} 15. e4 {[%emt 0:11:46]} Nxe4 {[%emt 0:13:34]} 16. Ncxe4 {
[%emt 0:00:21]} h6 {[%emt 0:13:23]} 17. O-O-O {[%emt 0:06:39]} hxg5 {[%emt 0:
02:08]} 18. Nxg5 {[%emt 0:00:37]} Nc6 {[%emt 0:17:39]} 19. Bc4 {[%emt 0:02:27]}
Ne5 {[%emt 0:01:46]} 20. Bxe5 {[%emt 0:01:08]} Qxd2+ {[%emt 0:00:48]} 21. Rxd2
{[%emt 0:00:07]} Bxe5 {[%emt 0:00:56]} 22. Bxf7+ {[%emt 0:03:06]} Kg7 {[%emt 0:
00:17]} 23. Bxe8 {[%emt 0:00:43]} Bf4 {[%emt 0:00:07]} 24. g3 {[%emt 0:08:20]}
Bxd2+ {[%emt 0:00:21]} 25. Kxd2 {[%emt 0:00:05]} Rd8+ {[%emt 0:00:36]} 26. Kc3
{[%emt 0:00:15]} Rxe8 {[%emt 0:00:03]} 27. f3 {[%emt 0:03:00]} Re2 {[%emt 0:03:
50]} 28. g4 {[%emt 0:04:39]} Rc2+ {[%emt 0:00:31]} 29. Kb3 {[%emt 0:00:05]} Bd3
{[%emt 0:00:19]} 30. h4 {[%emt 0:03:24]} b5 {[%emt 0:02:35]} 31. a4 {[%emt 0:
01:57]} bxa4+ {[%emt 0:00:25]} 32. Ka3 {[%emt 0:00:07]} Re2 {[%emt 0:00:31]}
33. Kxa4 {[%emt 0:10:54]} Rxb2 {[%emt 0:00:04]} 34. Ne6+ {[%emt 0:00:05]} Kg8 {
[%emt 0:00:21]} 35. Nxc5 {[%emt 0:03:07]} Bb5+ {[%emt 0:00:04]} 36. Ka3 {
[%emt 0:01:31]} Rf2 {[%emt 0:00:13]} 37. Kb4 {[%emt 0:02:07]} Bc6 {[%emt 0:00:
17]} 38. Rd1 {[%emt 0:00:51]} Rxf3 {[%emt 0:00:52]} 39. Rd8+ {[%emt 0:00:19]}
Rf8 {[%emt 0:00:30]} 40. Rxf8+ {[%emt 0:00:00]} 1/2-1/2

[Event "79th Tata Steel Chess 2017-Challengers"]
[Site "Wijk aan Zee"]
[Date "2017.01.15"]
[Round "2"]
[White "Grandelius, Nils"]
[Black "L'Ami, Erwin"]
[Result "1/2-1/2"]
[ECO "C07"]
[WhiteElo "2642"]
[BlackElo "2605"]
[Annotator "ChessBase"]
[PlyCount "73"]
[EventDate "2017.??.??"]
[EventType "tourn"]
[EventCountry "NED"]
[SourceTitle "playchess.com"]
[Source "ChessBase"]
[TimeControl "40/6000+30:20/3000+30:900+30"]

1. e4 {[%emt 0:00:00]} e6 {[%emt 0:00:34]} 2. d4 {[%emt 0:00:04]} d5 {[%emt 0:
00:09]} 3. Nd2 {[%emt 0:02:17]} c5 {[%emt 0:01:03]} 4. Ngf3 {[%emt 0:00:46]}
cxd4 {[%emt 0:00:43]} 5. Nxd4 {[%emt 0:00:22]} Nf6 {[%emt 0:00:42]} 6. exd5 {
[%emt 0:00:50]} Qxd5 {[%emt 0:01:21]} 7. Nb5 {[%emt 0:00:16]} Na6 {[%emt 0:01:
51]} 8. Nc3 {[%emt 0:02:15]} Qd8 {[%emt 0:10:49]} 9. a3 {[%emt 0:01:32]} Be7 {
[%emt 0:04:47]} 10. Qf3 {[%emt 0:00:53]} Nc7 {[%emt 0:03:05]} 11. Bd3 {[%emt 0:
03:50]} Ncd5 {[%emt 0:07:37]} 12. Nde4 {[%emt 0:05:06]} O-O {[%emt 0:05:23]}
13. Bd2 {[%emt 0:12:16]} Nxe4 {[%emt 0:23:49]} 14. Bxe4 {[%emt 0:08:59]} Nxc3 {
[%emt 0:04:05]} 15. Bxc3 {[%emt 0:01:01]} Bf6 {[%emt 0:00:16]} 16. Bxf6 {
[%emt 0:12:40]} Qxf6 {[%emt 0:01:44]} 17. Qxf6 {[%emt 0:00:05]} gxf6 {[%emt 0:
00:09]} 18. O-O-O {[%emt 0:00:16]} f5 {[%emt 0:02:33]} 19. Bf3 {[%emt 0:04:05]}
e5 {[%emt 0:07:27]} 20. Rhe1 {[%emt 0:07:18]} e4 {[%emt 0:03:50]} 21. Bh5 {
[%emt 0:02:07]} Kg7 {[%emt 0:00:42]} 22. Rd4 {[%emt 0:26:33]} Be6 {[%emt 0:03:
48]} 23. f4 {[%emt 0:02:01]} Kf6 {[%emt 0:01:15]} 24. Kd2 {[%emt 0:03:02]} Rac8
{[%emt 0:03:29]} 25. Re2 {[%emt 0:00:42]} Rfd8 {[%emt 0:07:10]} 26. Rxd8 {
[%emt 0:00:09]} Rxd8+ {[%emt 0:00:06]} 27. Ke1 {[%emt 0:00:22]} Rd6 {[%emt 0:
01:06]} 28. Rd2 {[%emt 0:06:13]} Rb6 {[%emt 0:01:32]} 29. b3 {[%emt 0:00:01]}
Rc6 {[%emt 0:01:50]} 30. Kd1 {[%emt 0:00:18]} Ke7 {[%emt 0:02:54]} 31. Be2 {
[%emt 0:01:32]} Bc8 {[%emt 0:02:16]} 32. Rd5 {[%emt 0:06:22]} Rh6 {[%emt 0:02:
32]} 33. Rc5 {[%emt 0:00:02]} Kd8 {[%emt 0:00:30]} 34. Rd5+ {[%emt 0:01:47]}
Ke7 {[%emt 0:00:18]} 35. Rc5 {[%emt 0:00:01]} Kd8 {[%emt 0:00:23]} 36. Rd5+ {
[%emt 0:01:15]} Ke7 {[%emt 0:00:08]} 37. Rc5 {[%emt 0:00:29]} 1/2-1/2